[Event "*** SCC Grand Prix: Titled Tuesday Blitz"]
[Site "Chess.com"]
[Date "2020.09.29"]
[Round "1"]
[White "Chessmatus"]
[Black "Skatchkov_V"]
[Result "0-1"]
[WhiteElo "2315"]
[BlackElo "2641"]
[TimeControl "180+1"]
[EndTime "10:08:47 PDT"]
[Termination "Skatchkov_V won on time"]

1. e4 {[%clk 0:03:00.9]} 1... e5 {[%clk 0:02:54.7]} 2. Nf3 {[%clk 0:03:01.3]}
2... Nf6 {[%clk 0:02:54.1]} 3. Nxe5 {[%clk 0:02:56.6]} 3... d6 {[%clk
0:02:53.7]} 4. Nf3 {[%clk 0:02:56.9]} 4... Nxe4 {[%clk 0:02:52.9]} 5. Qe2 {[%clk
0:02:56.7]} 5... Qe7 {[%clk 0:02:52.5]} 6. d3 {[%clk 0:02:57]} 6... Nf6 {[%clk
0:02:52.5]} 7. Bg5 {[%clk 0:02:57.6]} 7... Qxe2+ {[%clk 0:02:52.4]} 8. Bxe2
{[%clk 0:02:58.5]} 8... Be7 {[%clk 0:02:53.3]} 9. Nc3 {[%clk 0:02:59]} 9... c6
{[%clk 0:02:53.2]} 10. O-O-O {[%clk 0:02:59.3]} 10... Na6 {[%clk 0:02:53.7]} 11.
Rde1 {[%clk 0:02:59.6]} 11... Nc7 {[%clk 0:02:54.1]} 12. Bd1 {[%clk 0:02:59]}
12... Ne6 {[%clk 0:02:53.8]} 13. Bd2 {[%clk 0:02:57.9]} 13... Bd7 {[%clk
0:02:53.6]} 14. Ng5 {[%clk 0:02:40]} 14... h6 {[%clk 0:02:33]} 15. Nxe6 {[%clk
0:02:32.3]} 15... Bxe6 {[%clk 0:02:33.9]} 16. f4 {[%clk 0:02:32.7]} 16... g6
{[%clk 0:02:27.9]} 17. h3 {[%clk 0:02:05.4]} 17... h5 {[%clk 0:02:27.4]} 18. g3
{[%clk 0:01:42.4]} 18... O-O-O {[%clk 0:02:25.1]} 19. Rhg1 {[%clk 0:01:25.7]}
19... Rde8 {[%clk 0:02:23.7]} 20. g4 {[%clk 0:01:24.2]} 20... hxg4 {[%clk
0:02:22.4]} 21. hxg4 {[%clk 0:01:25.1]} 21... Rh2 {[%clk 0:02:17.9]} 22. g5
{[%clk 0:01:18.3]} 22... Nh5 {[%clk 0:02:00.3]} 23. Ne4 {[%clk 0:00:51.5]} 23...
d5 {[%clk 0:02:00]} 24. Ng3 {[%clk 0:00:41.8]} 24... Nxg3 {[%clk 0:01:59.9]} 25.
Rxg3 {[%clk 0:00:42.7]} 25... Bd6 {[%clk 0:02:00.8]} 26. Rf3 {[%clk 0:00:26.6]}
26... Reh8 {[%clk 0:01:59.2]} 27. Rff1 {[%clk 0:00:22.2]} 27... R8h4 {[%clk
0:01:56.6]} 28. a4 {[%clk 0:00:20.6]} 28... Kd7 {[%clk 0:01:55.2]} 29. a5 {[%clk
0:00:20.8]} 29... Rg2 {[%clk 0:01:53.3]} 30. Re2 {[%clk 0:00:18.8]} 30... Rhh2
{[%clk 0:01:20.2]} 31. Rxg2 {[%clk 0:00:17.3]} 31... Rxg2 {[%clk 0:01:21.1]} 32.
Bf3 {[%clk 0:00:13.1]} 32... Rxd2 {[%clk 0:01:15.5]} 33. Kxd2 {[%clk 0:00:14]}
33... Bxf4+ {[%clk 0:01:15.9]} 34. Ke2 {[%clk 0:00:14.9]} 34... Bxg5 {[%clk
0:01:16.8]} 35. Rg1 {[%clk 0:00:11.7]} 35... Bf6 {[%clk 0:01:16.5]} 36. c3
{[%clk 0:00:11.5]} 36... Bd8 {[%clk 0:01:14.5]} 37. b4 {[%clk 0:00:11.3]} 37...
Bf6 {[%clk 0:01:13.9]} 38. Kd2 {[%clk 0:00:11.8]} 38... Be5 {[%clk 0:01:11.6]}
39. Rh1 {[%clk 0:00:08.9]} 39... g5 {[%clk 0:01:08.8]} 40. Rg1 {[%clk
0:00:07.9]} 40... f5 {[%clk 0:01:08.5]} 41. Kc2 {[%clk 0:00:07]} 41... g4 {[%clk
0:01:08.3]} 42. Be2 {[%clk 0:00:06.9]} 42... Bf4 {[%clk 0:01:07.6]} 43. d4
{[%clk 0:00:05.9]} 43... Be3 {[%clk 0:01:07]} 44. Rg2 {[%clk 0:00:04.7]} 44...
Ke7 {[%clk 0:01:06.1]} 45. a6 {[%clk 0:00:04.2]} 45... b5 {[%clk 0:01:02.3]} 46.
Kd3 {[%clk 0:00:03.8]} 46... Bf4 {[%clk 0:01:00.6]} 47. Rg1 {[%clk 0:00:03.8]}
47... Kf6 {[%clk 0:01:00.2]} 48. Rf1 {[%clk 0:00:04]} 48... Kg5 {[%clk
0:00:59.9]} 49. Rh1 {[%clk 0:00:04.3]} 49... g3 {[%clk 0:00:56.9]} 50. Bf3
{[%clk 0:00:04.8]} 50... Bc8 {[%clk 0:00:31.4]} 51. Rh7 {[%clk 0:00:05.1]} 51...
Bxa6 {[%clk 0:00:30.8]} 52. Rxa7 {[%clk 0:00:05.5]} 52... Bc8 {[%clk 0:00:29.9]}
53. Ra8 {[%clk 0:00:06.1]} 53... Be6 {[%clk 0:00:26.9]} 54. Re8 {[%clk
0:00:05.4]} 54... Kf6 {[%clk 0:00:26.7]} 55. Rf8+ {[%clk 0:00:04.5]} 55... Ke7
{[%clk 0:00:26.2]} 56. Rh8 {[%clk 0:00:03.7]} 56... Bg5 {[%clk 0:00:24.5]} 57.
Rh5 {[%clk 0:00:03]} 57... Bf6 {[%clk 0:00:20.8]} 58. Rh1 {[%clk 0:00:03.5]}
58... f4 {[%clk 0:00:20.6]} 59. Ra1 {[%clk 0:00:04.1]} 59... Bf5+ {[%clk
0:00:20.2]} 60. Kd2 {[%clk 0:00:03.9]} 60... Bh3 {[%clk 0:00:20.3]} 61. Ke2
{[%clk 0:00:04.2]} 61... Kd6 {[%clk 0:00:20.1]} 62. Rh1 {[%clk 0:00:04.6]} 62...
Bf5 {[%clk 0:00:19.1]} 63. Rh6 {[%clk 0:00:05.2]} 63... Ke6 {[%clk 0:00:19.3]}
64. Rh1 {[%clk 0:00:04.5]} 64... Be4 {[%clk 0:00:19.2]} 65. Ra1 {[%clk
0:00:02.4]} 65... Kf5 {[%clk 0:00:18.7]} 66. Ra6 {[%clk 0:00:02.3]} 66... g2
{[%clk 0:00:18.8]} 67. Ra1 {[%clk 0:00:01.2]} 67... Bh4 {[%clk 0:00:17.3]} 68.
Rg1 {[%clk 0:00:01.6]} 68... Be1 {[%clk 0:00:15.9]} 0-1

[Event "*** SCC Grand Prix: Titled Tuesday Blitz"]
[Site "Chess.com"]
[Date "2020.09.29"]
[Round "1"]
[White "Moultino06"]
[Black "Zmeeed63"]
[Result "0-1"]
[WhiteElo "2675"]
[BlackElo "2370"]
[TimeControl "180+1"]
[EndTime "10:08:52 PDT"]
[Termination "Zmeeed63 won by resignation"]

1. e4 {[%clk 0:02:56.2]} 1... c5 {[%clk 0:03:00.1]} 2. Nf3 {[%clk 0:02:55.7]}
2... Nf6 {[%clk 0:03:00.5]} 3. e5 {[%clk 0:02:54.9]} 3... Nd5 {[%clk 0:03:00.6]}
4. b3 {[%clk 0:02:55.3]} 4... Nc6 {[%clk 0:02:57.1]} 5. Bb2 {[%clk 0:02:55.3]}
5... d6 {[%clk 0:02:56.3]} 6. Bc4 {[%clk 0:02:51]} 6... Nb6 {[%clk 0:02:54.5]}
7. Bb5 {[%clk 0:02:47.6]} 7... Bg4 {[%clk 0:02:34.2]} 8. h3 {[%clk 0:02:44.7]}
8... Bh5 {[%clk 0:02:32.9]} 9. d4 {[%clk 0:02:32.2]} 9... cxd4 {[%clk 0:02:21]}
10. g4 {[%clk 0:02:21.7]} 10... Bg6 {[%clk 0:02:20.9]} 11. Qxd4 {[%clk
0:02:11.5]} 11... e6 {[%clk 0:01:18.2]} 12. exd6 {[%clk 0:01:52.7]} 12... Qd7
{[%clk 0:01:18.5]} 13. Qd2 {[%clk 0:01:16.8]} 13... Bxd6 {[%clk 0:01:09.8]} 14.
Bxg7 {[%clk 0:01:09.5]} 14... Rg8 {[%clk 0:01:07.5]} 15. Bc3 {[%clk 0:00:52.4]}
15... O-O-O {[%clk 0:00:57.6]} 16. O-O {[%clk 0:00:42.8]} 16... h5 {[%clk
0:00:55.1]} 17. g5 {[%clk 0:00:41.5]} 17... Be4 {[%clk 0:00:47.3]} 18. Nd4
{[%clk 0:00:21.4]} 18... Qc7 {[%clk 0:00:42.2]} 19. f4 {[%clk 0:00:15.8]} 19...
e5 {[%clk 0:00:35]} 20. Nxc6 {[%clk 0:00:15.5]} 20... Bc5+ {[%clk 0:00:32.8]}
21. Nd4 {[%clk 0:00:14.9]} 21... exd4 {[%clk 0:00:31.1]} 22. Bb4 {[%clk
0:00:13.7]} 22... d3+ {[%clk 0:00:29.9]} 23. Bxc5 {[%clk 0:00:12.8]} 23... Qxc5+
{[%clk 0:00:30.8]} 24. Qf2 {[%clk 0:00:11.4]} 24... Qxb5 {[%clk 0:00:31]} 25.
Nc3 {[%clk 0:00:10.9]} 25... Qb4 {[%clk 0:00:26.6]} 26. cxd3 {[%clk 0:00:09.4]}
26... Bxd3 {[%clk 0:00:24.6]} 27. Rac1 {[%clk 0:00:09.2]} 27... Kb8 {[%clk
0:00:24.8]} 28. Rfe1 {[%clk 0:00:08.4]} 28... Bf5 {[%clk 0:00:19.9]} 29. Re5
{[%clk 0:00:07.4]} 29... Bxh3 {[%clk 0:00:19.1]} 30. Qe3 {[%clk 0:00:07.2]}
30... Bc8 {[%clk 0:00:15.4]} 31. Ne4 {[%clk 0:00:07.1]} 31... Qd4 {[%clk
0:00:11.8]} 32. Qxd4 {[%clk 0:00:07.4]} 32... Rxd4 {[%clk 0:00:12.7]} 33. Nf6
{[%clk 0:00:08.1]} 33... Rgd8 {[%clk 0:00:12.5]} 34. Kf2 {[%clk 0:00:07.1]}
34... Rxf4+ {[%clk 0:00:12.6]} 35. Ke3 {[%clk 0:00:06.2]} 35... Rf5 {[%clk
0:00:12.6]} 36. Ke4 {[%clk 0:00:04.3]} 36... Rxe5+ {[%clk 0:00:12.6]} 37. Kxe5
{[%clk 0:00:05.2]} 37... h4 {[%clk 0:00:12.6]} 38. Rh1 {[%clk 0:00:03.4]} 38...
h3 {[%clk 0:00:12.4]} 39. Kf4 {[%clk 0:00:04.3]} 39... Nd5+ {[%clk 0:00:12.1]}
40. Ke5 {[%clk 0:00:04.2]} 40... Nxf6 {[%clk 0:00:12.1]} 41. Kxf6 {[%clk
0:00:05.1]} 41... Be6 {[%clk 0:00:12.4]} 42. g6 {[%clk 0:00:05.3]} 42... fxg6
{[%clk 0:00:12.1]} 43. Kxe6 {[%clk 0:00:05.9]} 43... Rh8 {[%clk 0:00:12.6]} 44.
Kf6 {[%clk 0:00:06.5]} 44... h2 {[%clk 0:00:12.5]} 45. Kxg6 {[%clk 0:00:06.7]}
45... Kc7 {[%clk 0:00:13]} 46. Kg7 {[%clk 0:00:06.6]} 46... Rh3 {[%clk
0:00:12.8]} 47. Kg6 {[%clk 0:00:07.4]} 47... Kc6 {[%clk 0:00:12.9]} 48. Kg5
{[%clk 0:00:08.3]} 48... Kb5 {[%clk 0:00:12.9]} 49. Kg4 {[%clk 0:00:09.2]} 49...
Rh8 {[%clk 0:00:12.5]} 50. Kg3 {[%clk 0:00:09.6]} 50... Kb4 {[%clk 0:00:12.8]}
51. Kg2 {[%clk 0:00:09]} 51... Ka3 {[%clk 0:00:12.7]} 52. b4 {[%clk 0:00:09.4]}
52... Kxb4 {[%clk 0:00:12.5]} 53. Rb1+ {[%clk 0:00:08.7]} 53... Ka4 {[%clk
0:00:08.5]} 54. Kh1 {[%clk 0:00:08.8]} 54... b5 {[%clk 0:00:08.8]} 55. Rb3
{[%clk 0:00:08.9]} 55... b4 {[%clk 0:00:07.7]} 56. Rf3 {[%clk 0:00:08.2]} 56...
a5 {[%clk 0:00:07]} 57. Rg3 {[%clk 0:00:08.3]} 57... Rc8 {[%clk 0:00:06]} 58.
Rg2 {[%clk 0:00:04.8]} 58... Ka3 {[%clk 0:00:05.6]} 59. Re2 {[%clk 0:00:02.3]}
59... Rc1+ {[%clk 0:00:05.6]} 60. Kxh2 {[%clk 0:00:02.3]} 60... Ra1 {[%clk
0:00:06.4]} 61. Kg3 {[%clk 0:00:02.9]} 61... Rxa2 {[%clk 0:00:06.7]} 62. Re5
{[%clk 0:00:03.8]} 62... a4 {[%clk 0:00:06.4]} 63. Kf3 {[%clk 0:00:04.7]} 63...
b3 {[%clk 0:00:06.6]} 64. Ke3 {[%clk 0:00:05.2]} 64... Rc2 {[%clk 0:00:07.1]}
65. Kd3 {[%clk 0:00:05.2]} 65... Rc8 {[%clk 0:00:07.1]} 66. Rb5 {[%clk
0:00:03.2]} 66... b2 {[%clk 0:00:06.9]} 67. Kd2 {[%clk 0:00:03.4]} 67... Ka2
{[%clk 0:00:06.9]} 68. Rb4 {[%clk 0:00:04.3]} 68... a3 {[%clk 0:00:06]} 69. Ra4
{[%clk 0:00:05.2]} 69... b1=Q {[%clk 0:00:05.9]} 70. Rd4 {[%clk 0:00:06.1]}
70... Qc2+ {[%clk 0:00:05.8]} 71. Ke3 {[%clk 0:00:07]} 71... Re8+ {[%clk
0:00:05.7]} 72. Kf4 {[%clk 0:00:07.5]} 72... Qf2+ {[%clk 0:00:05.7]} 73. Kg4
{[%clk 0:00:08.1]} 73... Qxd4+ {[%clk 0:00:06]} 0-1

[Event "*** SCC Grand Prix: Titled Tuesday Blitz"]
[Site "Chess.com"]
[Date "2020.09.29"]
[Round "1"]
[White "josorio78"]
[Black "Paladin61"]
[Result "0-1"]
[WhiteElo "2307"]
[BlackElo "2628"]
[TimeControl "180+1"]
[EndTime "10:08:56 PDT"]
[Termination "Paladin61 won on time"]

1. Nf3 {[%clk 0:03:00.3]} 1... Nf6 {[%clk 0:02:58.5]} 2. g3 {[%clk 0:03:00.2]}
2... g6 {[%clk 0:02:58.7]} 3. Bg2 {[%clk 0:03:00.4]} 3... Bg7 {[%clk 0:02:59.4]}
4. O-O {[%clk 0:03:00.9]} 4... O-O {[%clk 0:02:59.6]} 5. d3 {[%clk 0:03:01.3]}
5... d6 {[%clk 0:02:47.9]} 6. e4 {[%clk 0:03:00.9]} 6... c5 {[%clk 0:02:47.3]}
7. Nbd2 {[%clk 0:03:00.9]} 7... Nc6 {[%clk 0:02:47.3]} 8. a4 {[%clk 0:03:01.3]}
8... Rb8 {[%clk 0:02:44.4]} 9. Nc4 {[%clk 0:03:01.3]} 9... Ne8 {[%clk
0:02:06.4]} 10. Nh4 {[%clk 0:02:55.7]} 10... b6 {[%clk 0:01:57.4]} 11. f4 {[%clk
0:02:55.3]} 11... Bb7 {[%clk 0:01:55.7]} 12. f5 {[%clk 0:02:53.9]} 12... Nf6
{[%clk 0:01:51.9]} 13. c3 {[%clk 0:02:44.7]} 13... Qc7 {[%clk 0:01:45.9]} 14.
Bf4 {[%clk 0:02:41.8]} 14... a6 {[%clk 0:01:43]} 15. Ne3 {[%clk 0:02:32.5]}
15... Rfc8 {[%clk 0:01:30.7]} 16. Ng4 {[%clk 0:02:28.9]} 16... Qd7 {[%clk
0:01:12.1]} 17. Nh6+ {[%clk 0:02:24]} 17... Kf8 {[%clk 0:01:11.4]} 18. fxg6
{[%clk 0:02:23.1]} 18... hxg6 {[%clk 0:01:11.1]} 19. Bg5 {[%clk 0:02:08.8]}
19... Nd8 {[%clk 0:01:05.5]} 20. h3 {[%clk 0:01:52.5]} 20... Ne6 {[%clk
0:00:58.3]} 21. Be3 {[%clk 0:01:39.7]} 21... Ke8 {[%clk 0:00:46.2]} 22. g4
{[%clk 0:01:35.2]} 22... Nd8 {[%clk 0:00:44]} 23. g5 {[%clk 0:01:21.4]} 23...
Nh7 {[%clk 0:00:42.6]} 24. Qf3 {[%clk 0:01:12.5]} 24... e5 {[%clk 0:00:33.3]}
25. Rf2 {[%clk 0:01:05]} 25... Qe7 {[%clk 0:00:31.7]} 26. Qg3 {[%clk 0:01:02.7]}
26... Nf8 {[%clk 0:00:22.2]} 27. Raf1 {[%clk 0:00:56.3]} 27... Rc7 {[%clk
0:00:22.4]} 28. Bf3 {[%clk 0:00:50.8]} 28... Bc8 {[%clk 0:00:21.6]} 29. Bg4
{[%clk 0:00:50.6]} 29... Be6 {[%clk 0:00:20.2]} 30. Bxe6 {[%clk 0:00:49]} 30...
Qxe6 {[%clk 0:00:19.5]} 31. Ng4 {[%clk 0:00:47.4]} 31... Nh7 {[%clk 0:00:15.3]}
32. Nf6+ {[%clk 0:00:46.2]} 32... Bxf6 {[%clk 0:00:14.2]} 33. gxf6 {[%clk
0:00:46.5]} 33... Nf8 {[%clk 0:00:14.2]} 34. Bh6 {[%clk 0:00:44.7]} 34... Qd7
{[%clk 0:00:12.4]} 35. Bxf8 {[%clk 0:00:43.5]} 35... Kxf8 {[%clk 0:00:12.1]} 36.
Qg5 {[%clk 0:00:40.3]} 36... Qe6 {[%clk 0:00:10.6]} 37. Kh2 {[%clk 0:00:39.3]}
37... Ke8 {[%clk 0:00:09.7]} 38. Nf3 {[%clk 0:00:31]} 38... Kd7 {[%clk
0:00:08.8]} 39. Qh4 {[%clk 0:00:31.2]} 39... Nc6 {[%clk 0:00:08.2]} 40. Ng5
{[%clk 0:00:31.4]} 40... Qe8 {[%clk 0:00:08.2]} 41. Qh7 {[%clk 0:00:31.4]} 41...
Kc8 {[%clk 0:00:08.3]} 42. h4 {[%clk 0:00:31.4]} 42... Kb7 {[%clk 0:00:08.1]}
43. h5 {[%clk 0:00:31.7]} 43... gxh5 {[%clk 0:00:08.3]} 44. Qxh5 {[%clk
0:00:31.8]} 44... Qd7 {[%clk 0:00:08.5]} 45. Rg2 {[%clk 0:00:29.1]} 45... Rg8
{[%clk 0:00:07.2]} 46. Rfg1 {[%clk 0:00:28]} 46... Nd8 {[%clk 0:00:06.3]} 47.
Nh3 {[%clk 0:00:27.8]} 47... Rxg2+ {[%clk 0:00:05.3]} 48. Rxg2 {[%clk
0:00:28.3]} 48... Qxa4 {[%clk 0:00:05.3]} 49. Rg8 {[%clk 0:00:26.5]} 49... Qd7
{[%clk 0:00:04.5]} 50. Ng5 {[%clk 0:00:23.3]} 50... Ne6 {[%clk 0:00:04.6]} 51.
Qh8 {[%clk 0:00:19.7]} 51... Nxg5 {[%clk 0:00:02.9]} 52. Rxg5 {[%clk 0:00:20.2]}
52... Rc8 {[%clk 0:00:02.3]} 53. Qh7 {[%clk 0:00:19.4]} 53... Rc7 {[%clk
0:00:03.2]} 54. Kg3 {[%clk 0:00:16.2]} 54... Qe6 {[%clk 0:00:04.1]} 55. Rf5
{[%clk 0:00:15.1]} 55... b5 {[%clk 0:00:04.3]} 56. Qg8 {[%clk 0:00:15]} 56... c4
{[%clk 0:00:03.8]} 57. dxc4 {[%clk 0:00:14.7]} 57... Qxc4 {[%clk 0:00:03.8]} 58.
Qg4 {[%clk 0:00:09.1]} 58... Qd3+ {[%clk 0:00:03.7]} 59. Kh4 {[%clk 0:00:09.3]}
59... Qd2 {[%clk 0:00:03.3]} 60. Qg3 {[%clk 0:00:04.1]} 60... Qxb2 {[%clk
0:00:03.1]} 61. Qe3 {[%clk 0:00:04.5]} 61... Qxc3 {[%clk 0:00:02.7]} 62. Qxc3
{[%clk 0:00:04.7]} 62... Rxc3 {[%clk 0:00:02.7]} 63. Rh5 {[%clk 0:00:05.6]}
63... b4 {[%clk 0:00:02.6]} 64. Rh7 {[%clk 0:00:05.8]} 64... Rc7 {[%clk
0:00:03.1]} 65. Rxf7 {[%clk 0:00:06.7]} 65... Rxf7 {[%clk 0:00:02.4]} 66. Kg5
{[%clk 0:00:07.6]} 66... Rxf6 {[%clk 0:00:03.3]} 67. Kxf6 {[%clk 0:00:07.8]}
67... b3 {[%clk 0:00:04.2]} 68. Ke6 {[%clk 0:00:08.4]} 68... Kc6 {[%clk
0:00:04.5]} 0-1

[Event "*** SCC Grand Prix: Titled Tuesday Blitz"]
[Site "Chess.com"]
[Date "2020.09.29"]
[Round "1"]
[White "KingHarii"]
[Black "mapleaff"]
[Result "1/2-1/2"]
[WhiteElo "2697"]
[BlackElo "2374"]
[TimeControl "180+1"]
[EndTime "10:09:04 PDT"]
[Termination "Game drawn by stalemate"]

1. c4 {[%clk 0:03:00.9]} 1... Nf6 {[%clk 0:02:59]} 2. Nf3 {[%clk 0:03:01.4]}
2... e6 {[%clk 0:02:59.3]} 3. g3 {[%clk 0:03:01.9]} 3... d5 {[%clk 0:02:59.4]}
4. Bg2 {[%clk 0:03:02.3]} 4... Be7 {[%clk 0:02:59.2]} 5. b3 {[%clk 0:03:01.9]}
5... O-O {[%clk 0:02:59.2]} 6. Bb2 {[%clk 0:03:02.5]} 6... c5 {[%clk 0:02:59.5]}
7. O-O {[%clk 0:03:02.1]} 7... Nc6 {[%clk 0:02:59.6]} 8. e3 {[%clk 0:02:59.6]}
8... b6 {[%clk 0:02:54.3]} 9. Nc3 {[%clk 0:02:55.2]} 9... Bb7 {[%clk 0:02:53.4]}
10. Ne2 {[%clk 0:02:47.5]} 10... Na5 {[%clk 0:02:45.9]} 11. cxd5 {[%clk
0:02:46.2]} 11... Bxd5 {[%clk 0:02:40]} 12. d4 {[%clk 0:02:45.5]} 12... cxd4
{[%clk 0:02:36]} 13. Nexd4 {[%clk 0:02:46.4]} 13... Nc6 {[%clk 0:02:30.9]} 14.
Rc1 {[%clk 0:02:39.5]} 14... Nxd4 {[%clk 0:02:28.6]} 15. Qxd4 {[%clk 0:02:40.4]}
15... Bc5 {[%clk 0:02:23.5]} 16. Qf4 {[%clk 0:02:38.6]} 16... Bd6 {[%clk
0:02:01.8]} 17. Qa4 {[%clk 0:02:38.4]} 17... Qd7 {[%clk 0:01:48.6]} 18. Qxd7
{[%clk 0:02:21.1]} 18... Nxd7 {[%clk 0:01:49.5]} 19. Rfd1 {[%clk 0:02:19.2]}
19... Nc5 {[%clk 0:01:16.6]} 20. Ba1 {[%clk 0:01:40.2]} 20... Be7 {[%clk
0:01:13.6]} 21. Ne5 {[%clk 0:01:35.8]} 21... Bxg2 {[%clk 0:01:12.1]} 22. Kxg2
{[%clk 0:01:36.7]} 22... Rac8 {[%clk 0:01:03.2]} 23. b4 {[%clk 0:01:33.2]} 23...
Ne4 {[%clk 0:00:57]} 24. Rxc8 {[%clk 0:01:32.2]} 24... Rxc8 {[%clk 0:00:56.1]}
25. Rd7 {[%clk 0:01:27.3]} 25... Bxb4 {[%clk 0:00:47.3]} 26. Nxf7 {[%clk
0:00:53.2]} 26... Rc2 {[%clk 0:00:30]} 27. Kf3 {[%clk 0:00:53.6]} 27... Rxf2+
{[%clk 0:00:15.5]} 28. Kxe4 {[%clk 0:00:51.8]} 28... Rxf7 {[%clk 0:00:16.4]} 29.
Rd8+ {[%clk 0:00:50.1]} 29... Rf8 {[%clk 0:00:16.8]} 30. Rd7 {[%clk 0:00:50.2]}
30... Rf7 {[%clk 0:00:16.9]} 31. Rd8+ {[%clk 0:00:46]} 31... Rf8 {[%clk
0:00:16.9]} 32. Rd4 {[%clk 0:00:40.9]} 32... Bc5 {[%clk 0:00:16.4]} 33. Rd2
{[%clk 0:00:40.7]} 33... a5 {[%clk 0:00:13.8]} 34. a4 {[%clk 0:00:40.6]} 34...
h6 {[%clk 0:00:09.5]} 35. g4 {[%clk 0:00:35.9]} 35... Rf1 {[%clk 0:00:08.7]} 36.
Be5 {[%clk 0:00:34.7]} 36... Re1 {[%clk 0:00:07.9]} 37. Rd8+ {[%clk 0:00:25.9]}
37... Kf7 {[%clk 0:00:08]} 38. Rd7+ {[%clk 0:00:26.1]} 38... Ke8 {[%clk
0:00:08.6]} 39. Rd3 {[%clk 0:00:25]} 39... Kf7 {[%clk 0:00:07.9]} 40. h4 {[%clk
0:00:20.1]} 40... g6 {[%clk 0:00:07.7]} 41. Rd7+ {[%clk 0:00:19.3]} 41... Ke8
{[%clk 0:00:07.5]} 42. Rd3 {[%clk 0:00:20]} 42... h5 {[%clk 0:00:07.8]} 43. gxh5
{[%clk 0:00:18.9]} 43... gxh5 {[%clk 0:00:08.7]} 44. Kf4 {[%clk 0:00:18.7]}
44... Be7 {[%clk 0:00:08.8]} 45. Bc7 {[%clk 0:00:11.3]} 45... Rf1+ {[%clk
0:00:08.9]} 46. Ke5 {[%clk 0:00:10.9]} 46... Bxh4 {[%clk 0:00:06.6]} 47. Bxb6
{[%clk 0:00:08.9]} 47... Bg3+ {[%clk 0:00:06]} 48. Kxe6 {[%clk 0:00:09.2]} 48...
Kf8 {[%clk 0:00:05.2]} 49. Rd8+ {[%clk 0:00:09.1]} 49... Kg7 {[%clk 0:00:05.7]}
50. Bxa5 {[%clk 0:00:09.4]} 50... Rf6+ {[%clk 0:00:05.8]} 51. Kd5 {[%clk
0:00:09.8]} 51... Rf5+ {[%clk 0:00:06.2]} 52. Ke4 {[%clk 0:00:09]} 52... Rxa5
{[%clk 0:00:07.1]} 53. Rd7+ {[%clk 0:00:09.7]} 53... Kg6 {[%clk 0:00:07]} 54.
Kf3 {[%clk 0:00:10.6]} 54... Bh4 {[%clk 0:00:07]} 55. Rd4 {[%clk 0:00:10.9]}
55... Bf6 {[%clk 0:00:06.8]} 56. Rc4 {[%clk 0:00:11.2]} 56... Rd5 {[%clk
0:00:06.7]} 57. Rc2 {[%clk 0:00:10.2]} 57... Rd1 {[%clk 0:00:06.5]} 58. Rg2+
{[%clk 0:00:10]} 58... Kf7 {[%clk 0:00:05.4]} 59. Ra2 {[%clk 0:00:10.9]} 59...
Rd5 {[%clk 0:00:05]} 60. a5 {[%clk 0:00:11.2]} 60... Rd7 {[%clk 0:00:05.5]} 61.
a6 {[%clk 0:00:11.7]} 61... Ra7 {[%clk 0:00:06]} 62. Ke4 {[%clk 0:00:12.2]}
62... Ke6 {[%clk 0:00:06.6]} 63. Ra5 {[%clk 0:00:10.8]} 63... h4 {[%clk
0:00:06.8]} 64. Kf3 {[%clk 0:00:10.8]} 64... Be5 {[%clk 0:00:06.4]} 65. Ra4
{[%clk 0:00:10]} 65... Bg3 {[%clk 0:00:07.3]} 66. Kg4 {[%clk 0:00:09.8]} 66...
Kd6 {[%clk 0:00:07.6]} 67. Kh3 {[%clk 0:00:09]} 67... Kc6 {[%clk 0:00:07.7]} 68.
e4 {[%clk 0:00:09.6]} 68... Kb5 {[%clk 0:00:08]} 69. Ra2 {[%clk 0:00:09.6]}
69... Rxa6 {[%clk 0:00:08.3]} 70. Rxa6 {[%clk 0:00:10]} 70... Kxa6 {[%clk
0:00:09.2]} 71. e5 {[%clk 0:00:10.8]} 71... Kb7 {[%clk 0:00:08.6]} 72. e6 {[%clk
0:00:11.5]} 72... Kc6 {[%clk 0:00:08.9]} 73. e7 {[%clk 0:00:12.4]} 73... Kd7
{[%clk 0:00:09.1]} 74. e8=Q+ {[%clk 0:00:13.3]} 74... Kxe8 {[%clk 0:00:09.4]}
75. Kg2 {[%clk 0:00:14.2]} 75... Kf7 {[%clk 0:00:09.8]} 76. Kh1 {[%clk
0:00:15.1]} 76... Kg6 {[%clk 0:00:10.7]} 77. Kg2 {[%clk 0:00:16]} 77... Kf5
{[%clk 0:00:11.3]} 78. Kh1 {[%clk 0:00:16.9]} 78... Kg4 {[%clk 0:00:12.2]} 79.
Kg2 {[%clk 0:00:17.8]} 79... h3+ {[%clk 0:00:12.6]} 80. Kh1 {[%clk 0:00:18.7]}
80... Be1 {[%clk 0:00:12.4]} 81. Kh2 {[%clk 0:00:18.9]} 81... Kh4 {[%clk
0:00:12.4]} 82. Kh1 {[%clk 0:00:19.8]} 82... Kg3 {[%clk 0:00:12.6]} 83. Kg1
{[%clk 0:00:20.3]} 83... Bf2+ {[%clk 0:00:13]} 84. Kh1 {[%clk 0:00:21.2]} 84...
h2 {[%clk 0:00:13.7]} 1/2-1/2